Cogmind - Beta 13 @@@ ROGUE MODE // 2024.04.14 @ 01:28:18 Player: thrax Result: Destroyed by G-47 Trooper with Particle Gun Performance ------------- Evolutions (0) 0 Regions Visited (2) 400 Robots Destroyed (14) 70 Value Destroyed (455) 455 Prototype IDs (0) 0 Alien Tech Used (0) 0 Bonus (0) 0 TOTAL SCORE: 925 Bonus ------- None Cogmind --------- Core Integrity 0/250 Matter 300/300 Energy 242/250 System Corruption 0% Temperature Warm (136) Movement Rolling (115) Ox1 Location -10/Mines Parts ------- > --- POWER (1) -------- Ion Engine > --- PROPULSION (2) --- Compact Wheel > --- UTILITY (2) ------ Medium Storage Unit Signal Interpreter > --- WEAPON (2) ------- Medium Laser Small Laser > --- INVENTORY (10) --- Ion Engine Sensor Array Signal Interpreter Seismic Detector Targeting Computer Grenade Launcher Rocket Launcher Datajack Mining Laser Peak State ------------ > --- POWER ------------ Light Nuclear Core > --- PROPULSION ------- Wheel Compact Wheel > --- UTILITY ---------- Medium Storage Unit Signal Interpreter > --- WEAPON ----------- Medium Laser Light Assault Rifle > --- INVENTORY -------- Ion Engine Ion Engine Small Storage Unit Sensor Array Signal Interpreter Seismic Detector Targeting Computer Grenade Launcher Rocket Launcher Mining Laser [Rating: 10] Favorites ----------- Power Ion Engine Engine Ion Engine Power Core Light Nuclear Core Propulsion Aluminum Leg Leg Aluminum Leg Wheel Compact Wheel Utility Signal Interpreter Storage Small Storage Unit Processor Signal Interpreter Weapon Light Assault Rifle Energy Gun Medium Laser Ballistic Gun Light Assault Rifle Launcher Grenade Launcher Build | -11 -10 -10 ------- Run | Yrd Mat Min Slots Evolved . | . . . Power . | . . . Propulsion . | . . . Utility . | . . . Weapon . | . . . Parts Attached 23 | 7 14 2 Power 6 | 1 4 1 Engine 4 | 1 2 1 Core 2 | . 2 . Reactor . | . . . Propulsion 7 | 2 5 . Treads . | . . . Leg 5 | 2 3 . Wheel 2 | . 2 . Hover . | . . . Flight . | . . . Utility 3 | 1 2 . Device . | . . . Storage 2 | 1 1 . Processor 1 | . 1 . Hackware . | . . . Protection . | . . . Artifact . | . . . Weapon 7 | 3 3 1 Energy Gun 5 | 2 2 1 Energy Cannon . | . . . Ballistic Gun 1 | 1 . . Ballistic Cannon . | . . . Launcher 1 | . 1 . Special Weapon . | . . . Impact Weapon . | . . . Slashing Weapon . | . . . Piercing Weapon . | . . . Special Melee Weapon . | . . . Unidentified Prototypes . | . . . Parts Lost 6 | . 3 3 Power 2 | . 1 1 Propulsion 2 | . 1 1 Utility . | . . . Weapon 2 | . 1 1 Highest Loss Streak 3 | . 2 3 To Critical Strikes . | . . . Average Slot Usage (%) 91 | . 91 91 Engine 8 | . 9 2 Core 3 | . 2 9 Leg 20 | . 24 . Wheel 6 | . 2 23 Storage 14 | . 14 14 Processor 11 | . 10 14 Energy Gun 11 | . 10 17 Ballistic Gun 13 | . 14 8 Launcher 1 | . 1 . Naked Turns . | . . . Heaviest Build 18 | 14 18 18 Greatest Support 26 | 20 26 26 Greatest Overweight (x) 1 | . . 1 Average Overweight (x) . | . . . Largest Inventory Capacity 10 | 8 10 10 Average Capacity 8 | 6 8 10 Most Carried 10 | 4 9 10 Average Carried 7 | 1 6 9 Final Capacity 10 | 8 10 10 Final Carried 9 | 4 9 9 Class Distribution -------------------- 100% | Mutant Dominant Class ---------------- Mutant | -10/Materials Mutant | -10/Mines Resources | -11 -10 -10 ----------- Run | Yrd Mat Min Matter Collected 501 | 166 306 29 Remotely . | . . . Salvage Created 507 | . 457 50 Parts 26 | . 24 2 Haulers Intercepted . | . . . Recyclers Shooed . | . . . Parts Field Recycled . | . . . Retrieved Matter . | . . . Parts Self-Destructed . | . . . Prevented . | . . . Kills | -11 -10 -10 ------- Run | Yrd Mat Min Combat Hostiles Destroyed 12 | . 11 1 Guns 11 | . 10 1 AOE 1 | . 1 . Classes Destroyed 3 | . 3 . Builder 1 | . 1 . Watcher 1 | . 1 . Grunt 12 | . 11 1 Best Kill Streak 4 | . 4 1 Combat Bots Only 2 | . 2 1 Max Kills in Single Turn 3 | . 3 1 Gunslinging . | . . . Exploded 1 | . 1 . Melee . | . . . Uniques/NPCs Destroyed . | . . . Combat | -11 -10 -10 -------- Run | Yrd Mat Min Hostile Shots Fired 117 | . 89 28 Missed 38 | . 31 7 Damage Taken 1017 | . 732 285 Core 250 | . 170 80 Absorbed by Shields . | . . . Regen/Repaired (Parts) 44 | . 44 . Core Remaining (%) 100 | 100 . . Volleys Fired 97 | . 72 25 Largest 2 | . 2 2 Hottest 90 | . 70 90 Shots Fired 145 | . 109 36 Gun 143 | . 107 36 Cannon . | . . . Launcher 2 | . 2 . Special . | . . . Kinetic 76 | . 70 6 Thermal 67 | . 37 30 Explosive 2 | . 2 . Electromagnetic . | . . . Robot Hit Streak 8 | . 8 5 Robot Miss Streak 4 | . 4 3 Penetration Max . | . . . Secondary Targets . | . . . Shots Hit Robots 83 | . 70 13 Core Hits 37 | . 34 3 Critical Kills . | . . . Critical Parts Destroyed 1 | . 1 . Critical Strikes 2 | . 1 1 Burn 1 | . . 1 Destroy 1 | . 1 . Melee Attacks . | . . . Impact . | . . . Slashing . | . . . Piercing . | . . . Sneak Attacks . | . . . Combat Hostiles . | . . . Follow-up Attacks . | . . . Damage Inflicted 1011 | . 847 164 Guns 814 | . 655 159 Cannons . | . . . Explosions 192 | . 192 . Melee . | . . . Ramming 5 | . . 5 Kinetic 405 | . 405 . Thermal 409 | . 250 159 Explosive 192 | . 192 . Electromagnetic . | . . . Impact . | . . . Slashing . | . . . Piercing . | . . . Highest Corruption . | . . . Average Corruption . | . . . Corruption Purged . | . . . Corruption Blocked . | . . . Overload Shots . | . . . Overflow Damage 6 | . 6 . Projectiles . | . . . Explosions 6 | . 6 . Melee . | . . . Knockbacks . | . . . Impact . | . . . Kinetic . | . . . Secondary . | . . . Self-Inflicted Damage 43 | . 41 2 Shots 2 | . 2 . Rammed 1 | . . 1 Targets Rammed 1 | . . 1 Kicked . | . . . Crushed . | . . . Highest Temperature 241 | . 220 241 Average Temperature 82 | . 60 128 Received Heat Transfer 546 | . 384 162 Siege Activations . | . . . Robots Corrupted . | . . . Combat Hostiles . | . . . Parts Fried . | . . . Impact Corruptions . | . . . Robots Melted . | . . . Combat Hostiles . | . . . Parts Melted 4 | . 3 1 Heat Transferred 1247 | . 740 507 Parts Sabotaged . | . . . Parts Stolen . | . . . Parts Stripped . | . . . Power Chain Reactions . | . . . Alert | -11 -10 -10 ------- Run | Yrd Mat Min Peak Influence 150 | . 150 63 Initial 58 | . . 58 Average 53 | . 56 55 Maximum Alert Level . | . . . Low Security (%) 100 | 100 100 100 Level 1 . | . . . Level 2 . | . . . Level 3 . | . . . Level 4 . | . . . Level 5 . | . . . High Security . | . . . Max Security . | . . . Squads Dispatched 3 | . 3 . Investigation 2 | . 2 . Extermination . | . . . Reinforcement 1 | . 1 . Assault . | . . . Garrison . | . . . Intercept . | . . . Searches Triggered . | . . . Construction Impeded . | . . . Haulers Reinforced . | . . . Active Scanning Responses . | . . . Cargo Convoy Interrupts . | . . . Stealth | -11 -10 -10 --------- Run | Yrd Mat Min Distress Signals . | . . . Communications Jammed . | . . . Distress Signals . | . . . Times Spotted 22 | . 19 3 Peak Tracking Total 4 | . 4 2 Tactical Retreats 1 | . . 1 Traps | -11 -10 -10 ------- Run | Yrd Mat Min Traps Triggered 1 | . 1 . Indirectly . | . . . Trap Hack Attempts . | . . . Triggered . | . . . Disarmed . | . . . Reprogrammed 1 | . 1 . Reused . | . . . Traps Extracted . | . . . Installed . | . . . Triggered . | . . . Machines | -11 -10 -10 ---------- Run | Yrd Mat Min Machines Disabled . | . . . Max in Single Turn . | . . . Machines Repaired . | . . . Machines Dismantled . | . . . Machines Sabotaged . | . . . Overloaded Fab Kills . | . . . Hacking | -11 -10 -10 --------- Run | Yrd Mat Min Machines Accessed 6 | . 6 . Terminals 3 | . 3 . Fabricators . | . . . Repair Stations 1 | . 1 . Recycling Units 2 | . 2 . Scanalyzers . | . . . Garrison Access . | . . . Total Hacks 24 | . 24 . Successful 14 | . 14 . Failed 10 | . 10 . Catastrophic . | . . . Database Lockouts . | . . . Manual . | . . . Terminals 10 | . 10 . Fabricators . | . . . Repair Stations 5 | . 5 . Recycling Units 9 | . 9 . Scanalyzers . | . . . Garrison Access . | . . . Terminal Hacks 7 | . 7 . Record 1 | . 1 . Emergency Access Points 1 | . 1 . Locate Traps 1 | . 1 . Reprogram Traps 1 | . 1 . Recall Investigation 1 | . 1 . Hauler Manifests 1 | . 1 . Registered Prototypes 1 | . 1 . Fabricator Hacks . | . . . Repair Station Hacks 3 | . 3 . Scan Component 2 | . 2 . Repair 1 | . 1 . Recycling Unit Hacks 4 | . 4 . Report Inventory 2 | . 2 . Retrieve Matter 2 | . 2 . Scanalyzer . | . . . Garrison Access Hacks . | . . . Unauthorized Hacks . | . . . Terminals . | . . . Fabricators . | . . . Repair Stations . | . . . Recycling Units . | . . . Scanalyzers . | . . . Garrison Access . | . . . Data Cores Recovered . | . . . Used . | . . . Hacking Detections 4 | . 4 . Full Trace Events 1 | . 1 . Feedback Events . | . . . Feedback Blocked . | . . . Robot Schematics Acquired . | . . . Robots Built . | . . . Authchips . | . . . Time . | . . . Total Robot Build Rating . | . . . Part Schematics Acquired . | . . . Parts Built . | . . . Authchips . | . . . Time . | . . . Total Part Build Rating . | . . . Parts Repaired 1 | . 1 . Time 36 | . 36 . Parts Recycled . | . . . Recycled Matter . | . . . Retrieved Matter . | . . . Retrieved Components . | . . . Parts Scanalyzed . | . . . Part Schematics Acquired . | . . . Parts Damaged . | . . . Bothacking | -11 -10 -10 ------------ Run | Yrd Mat Min Used RIF Installer . | . . . Robots Hacked . | . . . Non-combat . | . . . Combat . | . . . Robot Hacks Applied . | . . . Relay Couplers Released . | . . . Fabnet Peak Effective % . | . . . Robots Rewired . | . . . Allies Hacked . | . . . Hacks Repelled . | . . . Allies | -11 -10 -10 -------- Run | Yrd Mat Min Total Allies . | . . . Largest Group . | . . . Highest-Rated Group . | . . . Highest-Rated Ally . | . . . Total Orders . | . . . Ally Attacks . | . . . Total Damage . | . . . Kills . | . . . Allies Corrupted . | . . . Allies Melted . | . . . Intel | -11 -10 -10 ------- Run | Yrd Mat Min Robot Analysis Total . | . . . Derelict Logs Recovered 1 | . . 1 Drone Launches . | . . . Drone Recoveries . | . . . Exploration | -11 -10 -10 ------------- Run | Yrd Mat Min Turns Passed 1427 | 63 1123 241 Spaces Moved 858 | 43 629 186 Core 3 | 3 . . Treads . | . . . Legs 617 | 40 577 . Wheels 238 | . 52 186 Hover . | . . . Flight . | . . . Fastest Speed 50 | 50 90 90 Average Speed 112 | 115 117 94 Slowest Speed 120 | 120 120 115 Overloaded Moves . | . . . Propulsion Burnouts . | . . . Robots Hopped . | . . . Cave-ins Triggered . | . . . Exploration Rate (%) 45 | 4 93 39 Regions Visited 2 Branch Regions 1 Pre-discovered Areas . | . . . Known Exits Taken 1 | . 1 . Unknown Exits Taken 1 | 1 . . Scrap Searched 1 | . . 1 Spaces Dug . | . . . Terrain Destroyed 18 | . 18 . Melee . | . . . Projectile . | . . . AOE 18 | . 18 . Terrain Rammed . | . . . Walls Destroyed . | . . . Machines Disabled . | . . . Actions | -11 -10 -10 --------- Run | Yrd Mat Min Total 1186 | 53 916 217 Wait 187 | . 187 . Move 856 | 42 628 186 Hop . | . . . Pick Up 14 | 4 8 2 Fast Attach 12 | 6 5 1 Attach 2 | . 1 1 Detach . | . . . Swap 9 | 1 8 . Drop 8 | . 7 1 Fire 97 | . 72 25 Melee . | . . . Ram 1 | . . 1 Kick . | . . . Crush . | . . . Escape Stasis . | . . . Rewire . | . . . Trap . | . . . Miscellaneous . | . . . Route ------- -11/Scrapyard -10/Materials (discovered 5 exits: *Mat x3 / *Min x2) -10/Mines (discovered 2 exits: *Mat x2) History --------- Turn | Location | Event 4 | -11/Scrapyard | Discovered new exit (range 16) 64 | -11/Scrapyard | Entered Materials 312 | -10/Materials | Build established: Mutant 399 | -10/Materials | Discovered new exit (range 12) 528 | -10/Materials | Identified exit to Materials 744 | -10/Materials | Discovered exit to Materials (range 15) 798 | -10/Materials | Discovered new exit (range 16) 814 | -10/Materials | Identified exit to Mines 880 | -10/Materials | Discovered exit to Materials (range 16) 1021 | -10/Materials | Core integrity fell below 50% 1056 | -10/Materials | Discovered exit to Mines (range 14) 1165 | -10/Materials | Repaired Broken Med. Laser 1187 | -10/Materials | Entered Mines 1192 | -10/Mines | Discovered exit to Materials (range 6) 1206 | -10/Mines | Received a Rocket Launcher from a helpful Derelict 1313 | -10/Mines | Discovered exit to Materials (range 10) 1348 | -10/Mines | Core integrity fell below 20% 1375 | -10/Mines | Lost 3 parts (1p1n1w) 1428 | -10/Mines | Destroyed by G-47 Trooper with Particle Gun Last Messages --------------- 01319_ Found Sml. Battery. 01319_ Found 16 Matter. 01319_ Found Datajack. 01319_ Found 24 Matter. 01320_ Acquired 14 matter. 01322_ Dropped Sml. Storage Unit. 01323_ Acquired Datajack. 01324_ G-47 Trooper suffers critical hit (Burn). 01338_ Lgt. Assault Rifle destroyed. 01340_ Wheel destroyed. 01344_ Lgt. Nuclear Core destroyed. 01365_ Heat Sink melted. 01365_ G-34 Mercenary destroyed. 01365_ R-06 Scavenger collects Sml. Storage Unit. 01369_ Acquired Sml. Laser. 01371_ R-06 Scavenger collects Aluminum Leg. 01374_ Slammed into R-06 Scavenger. 01375_ Acquired 15 matter. 01403_ Acquired derelict log, extracted data. Data stored: Storage entrances (x1). Map ----- +----------------------------------------------------+ | ?????????????????????????? #???# #??## | | ?????????????????????????? #???# ######## | | ?????????????????????????? #???# ##??? | | ??????????????????????#??? #???## #??? | | ?????????????????????? ##?# #????### ##?? | | ?????????????????????? ? #??????## ##? | | ?????????????????????? #?# #????#### ## | | ??????????????????????# #?# #????# # | | ??????????????????????# #?# #????# | | ?????????????###??????# #?# #????# | | ????????????## #??????# #?# #????##### | | ????????????# #??##### ### #????????# | | ????????????# #??# %% ########## | | ???????????## #??#!####### | | ?????????### ##?# #?????# # | | ??????#### ### #?????## ####### ## ## | | ????# #??????# #?????# ######? | | ????# # ######??????# #?????# #?????? | | ????# ## #??????????? ?????# #?????? | | ????## ?# #??????????? ?????# #?????? | | ?????# ??# ######????? ?????# #?????? | | ?????# ???# #????? ????# ###???? | | ????# ????# #????? < ????# #???? | | ???# ????###### #????# ????### #???? | | ??# ??????????# #????######??????? #???? | | ?? ""???????????# @###???????????????? ???? | | ?# "????????????# #?????????????????#??? | | ?#???????????????# #???????????????????? | | ?????????????????# #???????????????????? | | ????????????????? #??????????????????? | | ???????????????? g #?????????????????? | | ??????????????? #????????????????? | | ??????????????? #???????????????? | | ??????????????## #???????????????? | | ???????????????## #### #???????????????? | | ????????????????# ###???# t#???????????????? | | ????????????????# ??????? ???????????????? | | ????????????????# ???????? ??????????????? | | ???????????????? ???????? ??????????????? | | ????????????????##?????????????????????????? | | ???????????????????????????????????????????? | | ???????????????????????????????????????????? | | ???????????????????????????????????????????? | | ???????????????????????????????????????????? | | ???????????????????????????????????????????? | | ???????????????????????????????????????????? | | ???????????????????????????????????????????? | | ???????????????????????????????????????????? | | ???????????????????????????????????????????? | | ???????????????????????????????????????????? | +----------------------------------------------------+ Best States ------------- Heat Dissipation 25 Energy Generation 14 Energy Capacity 250 Matter Stores 300 Matter Capacity 300 Sight Range 16 Terrain Scan Density 10 Evasion (%) 55 Item Schematics ----------------- None Robot Schematics ------------------ None Fabricated ------------ Nothing Alien Tech Used ----------------- None Achievements -------------- None Challenges ------------ None Game ------ Seed TripodServoDeconstructor Manual? 0 Play Time 00:16:59 Cumulative 16.1 hours Start 2024.04.14 @ 01:13:20 End 2024.04.14 @ 01:28:18 Sessions 1 Manual Loads 0 Difficulty Rogue Special Mode None Game No. 14 Rogue 8 Adventurer 6 Explorer 0 Win Type - Total 0 Types 0/0/0/0/0/0/0/0/0 Lore% 18 Gallery% 23 Achievement% 24 Wizard Run 0 Options --------- Layout 0 ASCII 0 Keyboard 0 Movement Mouse Keybinds 0 Fullscreen 2 Font 36/Smallcaps Map View 76x50 Zoom Use 0% Tactical HUD 1 Map Filters NONE Filters NONE Steam 1 RUN: ef7340d7-dec5-457d-9222-7a592a00dfa5